[Event "Icelandic Championship 2022"]
[Site "Selfoss"]
[Date "2022.04.24"]
[Round "4.4"]
[White "Thorhallsson, Simon"]
[Black "Gretarsson, Hjorvar Steinn"]
[Result "0-1"]
[ECO "D12"]
[WhiteElo "2252"]
[BlackElo "2542"]
[Annotator "TA"]
[PlyCount "110"]
[EventDate "2022.04.21"]
[EventType "tourn"]
[EventCountry "ISL"]
[SourceTitle "playchess.com"]
[Source "ChessBase"]
[SourceQuality "1"]
[TimeControl "40/5400+30:1800+30"]

{[%evp 15,110,21,22,20,16,13,23,20,6,16,22,0,22,12,3,0,43,30,58,7,59,6,6,8,13,2,0,-57,-43,-61,-69,-78,-70,-74,-77,-63,-58,-89,-86,-191,-179,-183,-172,-176,-147,-353,-300,-328,-286,-283,0,-6,0,-6,308,-16,-23,-20,-37,-66,-31,-157,-157,-137,-157,-464,-454,-969,-945,-1054,-1054,-1047,-949,-1018,-1031,-993,-960,-2141,-2153,-1955,-1710,-1324,-1159,-899,0,-771,0,0,0,-29973,-29974,-29974,-6402,-29986,-29987,-29995,-29994]} 1. d4 {[%emt 0:00:04]} Nf6 {[%emt 0:03:12]} 2. c4 {[%emt 0:00:16]} c6 {[%emt 0:00:31]} 3. Nf3 {[%emt 0:00:22]} d5 {[%emt 0:00:05]} 4. e3 {[%emt 0:00:08]} Bf5 {[%emt 0:00:09]} 5. Nc3 {[%emt 0:00:26]} e6 {[%emt 0:00:05]} 6. Nh4 {[%emt 0:00:40]} Be4 {[%emt 0:00:06]} 7. f3 {[%emt 0:00:17]} Bg6 {[%emt 0:00:05]} 8. Qb3 {[%emt 0:01:20]} Qc7 {[%emt 0:00:06]} 9. Bd2 {[%emt 0:03:55] D12: Slav Defence: 3 Nf3 Nf6 4 e3 Bf5.} Be7 {[%emt 0:01:38]} 10. Nxg6 {[%emt 0:04:09]} hxg6 {[%emt 0:00:06]} 11. O-O-O {[%emt 0:00:11] White has an edge.} dxc4 {[%emt 0:04:24]} 12. Bxc4 {[%emt 0:04:30]} b5 {[%emt 0:07:28]} 13. Bf1 {[%emt 0:09:59] [#]} a5 $146 {[%emt 0:11:08]} ({Predecessor:} 13... a6 14. e4 c5 15. d5 c4 16. Qc2 e5 17. g4 Nfd7 18. Be3 Nc5 19. h4 Nbd7 {½-½ (55) Shengelia,D (2560)-Esen,B (2494) Novi Sad 2009}) 14. Qc2 {[%emt 0:09:32][%cal Oc3b5]} Na6 {[%emt 0:02:25]} 15. Kb1 {[%emt 0:07:28]} Nb4 {[%emt 0:06:36]} 16. Qc1 {[%emt 0:03:37][%cal Oc3b5]} (16. Nxb5 Qb6 17. Qc4 (17. Bxb4 $2 axb4 18. Rc1 cxb5 $19) 17... cxb5 18. Qxb5+ Qxb5 19. Bxb5+ Kf8 $15) 16... Qb7 {[%emt 0:10:41]} (16... Rxh2 $2 17. Nxb5 $1 {[%mdl 512]} Qb6 18. Rxh2 $18) 17. e4 {[%emt 0:06:34]} O-O {[%emt 0:03:11]} ({Black should play} 17... a4 $11) 18. g4 {[%emt 0:05:56]} (18. a3 Na6 $11) (18. h4 $1 $14) 18... Rfc8 $1 $11 {[%emt 0:05:51]} 19. Be3 {[%emt 0:05:18]} (19. a3 Na6 $15) 19... a4 {[%emt 0:04:52][%cal Oa4a3]} 20. h4 {[%emt 0:01:10] Threatening h5.} a3 {[%emt 0:00:55]} 21. b3 {[%emt 0:01:03]} ({White should try} 21. h5 $11) 21... c5 $1 $15 {[%emt 0:01:18]} 22. dxc5 {[%emt 0:06:36]} (22. Bxb5 c4 23. bxc4 (23. Bxc4 $2 Rxc4 24. bxc4 Nd3+ 25. Kc2 Nxc1 $19) 23... Rxc4 $1 24. Bxc4 (24. g5 $2 Nbd5 $19) 24... Nd3+ 25. Bb3 Nxc1 26. Rxc1 Nd7 $17) 22... Bxc5 {[%emt 0:00:15]} 23. h5 {[%emt 0:03:48]} Qb6 {[%emt 0:05:13]} 24. Bxc5 {[%emt 0:09:20]} Qxc5 {[%emt 0:09:37]} 25. Bxb5 {[%emt 0:05:23][%cal Oh5g6] Strongly threatening hxg6!} g5 {[%emt 0:02:13]} (25... Qxc3 $2 26. Rd8+ $3 {[%mdl 512]} Kh7 27. Qxc3 Rxc3 28. Rxa8 $18) 26. Bc4 {[%emt 0:02:18]} Qe5 {[%emt 0:00:22]} 27. h6 {[%emt 0:01:13]} (27. Rhe1 $17) 27... Rab8 $19 {[%emt 0:00:53][%cal Oc8c4] Threatens to win with ...Rxc4!} 28. Ka1 {[%emt 0:02:31]} gxh6 {[%emt 0:03:58]} 29. Rxh6 {[%emt 0:00:30]} Nc6 {[%emt 0:01:20]} 30. Rdh1 $2 {[%emt 0:02:15]} (30. Rd3 $17 {keeps fighting.}) 30... Kg7 {[%emt 0:04:35]} 31. f4 {[%emt 0:01:36]} gxf4 {[%emt 0:00:16]} 32. g5 {[%emt 0:00:57]} Qxg5 {[%emt 0:01:19]} (32... Nxe4 $19 33. Rh7+ Kf8) 33. R6h4 {[%emt 0:00:30] Rg1 is the strong threat.} Qe5 {[%emt 0:01:03]} 34. Rxf4 {[%emt 0:00:27][%cal Of4f5] aiming for Rf5!} Nd4 {[%emt 0:03:54][%mdl 8192] Prevents Rf5. Active counter play!} (34... Rh8 $1 $11 {and Black has nothing to worry.} 35. Rg1+ (35. Qg1+ Kf8 $11) 35... Kf8) 35. Rg1+ $2 {[%emt 0:00:26]} (35. Rfh4 $18 {Qh6+ would kill now.} Kf8 36. Qxa3+ Rc5 37. Kb1 (37. Rh8+ Kg7 $17)) 35... Kf8 $11 {[%emt 0:00:08][%cal Oc8c4,Bg7f8,Bf8e8,Be8d7,Bd7d6][%mdl 32] Hoping for ...Rxc4!} 36. Rxf6 $1 {[%emt 0:02:32]} Qxf6 {[%emt 0:02:30]} 37. Qxa3+ {[%emt 0:00:06]} Ke8 {[%emt 0:01:22]} 38. Rg8+ {[%emt 0:00:20]} ({Better is} 38. Qd6 $1 $15 Nxb3+ 39. axb3 Qxc3+ 40. Ka2 Ra8+ 41. Ba6 Rxa6+ 42. Qxa6) 38... Kd7 $17 {[%emt 0:00:05]} 39. Qa7+ {[%emt 0:00:14]} Kd6 {[%emt 0:00:18]} 40. e5+ $2 {[%emt 0:01:53]} (40. Rxc8 $17 {was the crucial defense.} Rxc8 41. Kb1) 40... Qxe5 $19 {[%emt 0:01:23]} 41. Qa3+ {[%emt 0:06:38]} (41. Rxc8 $142 Rxc8 42. Qa6+ Kc7 43. Qa7+ Kd8 44. Qxf7) 41... Rc5 {[%emt 0:03:42]} 42. Qa6+ {[%emt 0:06:52]} Nc6 {[%emt 0:01:36]} 43. Rxb8 {[%emt 0:02:21]} Qxc3+ {[%emt 0:01:19]} 44. Kb1 {[%emt 0:00:08]} Ra5 {[%emt 0:09:25]} 45. Rd8+ {[%emt 0:04:06]} Kc5 {[%emt 0:01:30]} ({Don't go for} 45... Ke7 $2 46. Qxc6 Qe1+ 47. Kb2 Qe5+ 48. Kb1 Kxd8 49. Qb6+ Ke7 50. a4 $19) 46. Qc8 {[%emt 0:00:19]} Qe1+ {[%emt 0:01:31]} 47. Kb2 {[%emt 0:00:09]} Qf2+ {[%emt 0:06:19]} 48. Kc1 {[%emt 0:00:31]} Qe3+ {[%emt 0:01:20]} (48... Rxa2 49. b4+ Kxb4 50. Bxa2 Nxd8 51. Qb8+ Ka4 52. Bb3+ Ka3 53. Bc4 $11) 49. Kb2 {[%emt 0:01:29]} Qf2+ {[%emt 0:01:04]} 50. Kc1 {[%emt 0:00:12] [#]} Qf6 $2 {[%emt 0:03:39]} (50... Rxa2 51. b4+ Kxb4 52. Bxa2 Nxd8 53. Qb8+ Ka4 54. Bb3+ Ka3 55. Bc4 $15) (50... Qf4+ $1 $19 51. Kb1 Qe4+ 52. Bd3 Qe1+ 53. Kb2 Qd2+ 54. Bc2 Qxd8 55. b4+ Kxb4 56. Qxc6 Qd4+ 57. Kb1 Rb5) 51. b4+ $1 $11 {[%emt 0:02:50]} Kxb4 {[%emt 0:00:22] ( -> ...Qc3+). Really sharp!} 52. Rd2 $2 {[%emt 0:03:44][%mdl 8192]} (52. Qb7+ $11 Kc5 53. Rc8 Qc3+ 54. Kd1 Qf3+ 55. Kd2) 52... Qa1+ {[%emt 0:02:00]} 53. Kc2 {[%emt 0:00:07]} Qc3+ {[%emt 0:00:57]} (53... Nd4+ $142 54. Rxd4 Qxd4 55. a3+ Rxa3 56. Qf8+ Qc5 57. Qxc5+ Kxc5 58. Bf1 f5 59. Be2 Ra2+ 60. Kd1 {[#]} Rxe2 $1 {[%mdl 512]} 61. Kxe2 Kd4 62. Kf3 e5 63. Ke2 e4 64. Kd2 f4 65. Kd1 f3 66. Kd2 e3+ 67. Kd1 Kd3 68. Ke1 Kc2 69. Kf1 Kd2 70. Kg1 e2 71. Kh2 e1=Q 72. Kh3 Qg1 73. Kh4 Qg6 74. Kh3 Qg5 75. Kh2 Qg2#) 54. Kb1 {[%emt 0:01:28]} Qxd2 {[%emt 0:01:45]} 55. a3+ {[%emt 0:00:30]} Kc3 {[%emt 0:00:26] Weighted Error Value: White=0.68/Black=0.70} 0-1

[Event "Icelandic Championship 2022"]
[Site "Selfoss"]
[Date "2022.04.24"]
[Round "4.5"]
[White "Kjartansson, Gudmundur"]
[Black "Heimisson, Hilmir Freyr"]
[Result "1-0"]
[ECO "D30"]
[WhiteElo "2430"]
[BlackElo "2321"]
[Annotator "TA"]
[PlyCount "97"]
[EventDate "2022.04.21"]
[EventType "tourn"]
[EventCountry "ISL"]
[SourceTitle "playchess.com"]
[Source "ChessBase"]
[SourceQuality "1"]
[TimeControl "40/5400+30:1800+30"]

{[%evp 9,97,19,35,35,31,33,44,34,26,31,24,21,47,46,70,48,54,44,67,74,112,111,106,107,125,130,138,136,142,135,135,127,135,133,135,130,127,124,116,114,168,148,333,196,306,312,456,456,422,399,559,310,351,294,385,297,345,345,336,350,701,518,479,502,494,472,1141,1102,12841,537,12837,8129,1910,1684,29975,29957,29990,29990,29992,29991,29991,29990,29990,5987,2468,1664,29991,29992,29992,29992]} 1. d4 {[%emt 0:00:05]} d5 {[%emt 0:00:29]} 2. c4 {[%emt 0:00:08]} c6 {[%emt 0:00:08]} 3. Nf3 {[%emt 0:00:13]} Nf6 {[%emt 0:00:33]} 4. e3 {[%emt 0:00:14]} e6 {[%emt 0:01:29]} 5. b3 {[%emt 0:01:02]} Ne4 {[%emt 0:02:04]} 6. Bd3 {[%emt 0:01:37] D30: Queen's Gambit Declined: Systems without Nc3.} Nd7 {[%emt 0:01:00]} 7. O-O {[%emt 0:13:06]} Bd6 {[%emt 0:05:52]} 8. Bb2 {[%emt 0:02:12] White is slightly better.} f5 {[%emt 0:03:13]} 9. Ne5 {[%emt 0:02:56]} Nxe5 {[%emt 0:14:11]} 10. dxe5 {[%emt 0:01:03] [#] Hoping for Bxe4.} Bb4 $146 {[%emt 0:00:46]} ({Predecessor:} 10... Be7 11. Nc3 Nxc3 12. Bxc3 O-O 13. Qe2 b6 14. Rad1 Bb7 15. f4 Qe8 16. g4 Rc8 17. gxf5 exf5 18. cxd5 cxd5 {½-½ (30) Predojevic,B (2642)-Szabo,K (2548) Zadar 2011}) 11. f3 {[%emt 0:03:49][%cal Bf2f3,Bf3f4][%mdl 32]} Ng5 {[%emt 0:02:40]} 12. Ba3 {[%emt 0:17:18]} Bxa3 {[%emt 0:15:43]} 13. Nxa3 {[%emt 0:00:05][%cal Bb1a3,Ba3c2,Bc2d4][%mdl 32]} Qb6 {[%emt 0:02:50]} 14. Nc2 {[%emt 0:05:03]} Nf7 {[%emt 0:04:02] [#]} 15. f4 {[%emt 0:00:55]} O-O {[%emt 0:01:15]} 16. b4 {[%emt 0:07:43]} Qc7 {[%emt 0:09:27]} 17. Nd4 {[%emt 0:06:18]} Nh6 {[%emt 0:00:23]} 18. Qd2 {[%emt 0:07:14]} Qe7 {[%emt 0:00:52]} 19. a4 {[%emt 0:03:27] 0x0.00249b13221edp-1022s more active pieces.} Bd7 {[%emt 0:01:13]} 20. c5 {[%emt 0:03:35]} Rac8 {[%emt 0:01:38]} 21. Rfc1 {[%emt 0:01:09]} a6 {[%emt 0:00:37]} 22. Rab1 {[%emt 0:04:05]} Kh8 {[%emt 0:00:52]} 23. b5 {[%emt 0:00:30]} axb5 {[%emt 0:08:43]} 24. axb5 {[%emt 0:00:06]} Rf7 {[%emt 0:03:14]} (24... Rg8 $16) 25. bxc6 $18 {[%emt 0:00:29]} bxc6 {[%emt 0:03:13] This costs Black the game.} (25... Bxc6 $16 26. Rb6 Qe8) 26. Rb7 {[%emt 0:03:58]} (26. Ba6 $142 Rc7 27. Qa5) 26... Qd8 {[%emt 0:00:28]} (26... g5 {keeps fighting.} 27. Ba6 gxf4) 27. Ra1 {[%emt 0:01:27]} g5 {[%emt 0:12:11]} (27... Re7 {might work better.} 28. Raa7 Ng8) 28. Raa7 {[%emt 0:02:03]} gxf4 {[%emt 0:00:44]} 29. exf4 {[%emt 0:00:08]} Qe8 {[%emt 0:00:24]} (29... Ra8 {was worth a try.} 30. Qa2 Rxa7 31. Qxa7 Kg7) 30. Nf3 {[%emt 0:03:57]} Rg7 {[%emt 0:01:30]} 31. Ng5 {[%emt 0:00:30]} Rd8 {[%emt 0:00:14]} 32. Be2 {[%emt 0:03:33] Black must now prevent Qa5.} Nf7 {[%emt 0:02:27]} 33. Nf3 {[%emt 0:01:25]} (33. Bh5 Nxg5 34. Bxe8 Nf3+ 35. Kh1 Nxd2 $14) 33... Nh6 {[%emt 0:00:51]} 34. Qa5 {[%emt 0:01:47]} Ng4 $2 {[%emt 0:01:12]} (34... Ng8 35. g3 Re7) 35. Ng5 {[%emt 0:01:20]} Rc8 {[%emt 0:00:23]} 36. Bxg4 {[%emt 0:02:59]} fxg4 {[%emt 0:00:02]} 37. f5 {[%emt 0:00:26][%cal Of5e6,Bf4f5,Bf5f6][%mdl 32]} Rxg5 {[%emt 0:01:29]} (37... Qh5 $142 38. f6 (38. Rxd7 Rxd7 39. Ra8 Qe8 $15) (38. fxe6 $2 g3 $19) 38... Qxg5 39. fxg7+ Kg8) 38. Rxd7 {[%emt 0:00:04]} Qf8 {[%emt 0:00:34]} 39. Rxh7+ {[%emt 0:00:22]} Kg8 {[%emt 0:00:01]} 40. f6 {[%emt 0:01:26] White wants to mate with Qd2.} Rb8 {[%emt 0:00:23]} 41. Qe1 {[%emt 0:13:38][%cal Oh7h8] Threatening mate with Rh8+!} Qxc5+ {[%emt 0:27:56]} 42. Kh1 {[%emt 0:00:12]} Kf8 {[%emt 0:02:15]} 43. h4 {[%emt 0:09:48][%cal Bh2h4,Bh4h5,Bh5h6,Bh6h7][%mdl 32]} Rg6 {[%emt 0:00:36]} 44. h5 {[%emt 0:04:23]} Rg5 {[%emt 0:00:19]} 45. Raf7+ {[%emt 0:00:18]} Kg8 {[%emt 0:01:04]} 46. Rfg7+ {[%emt 0:00:10]} (46. Rd7 $142 Kf8 47. f7 Qe7 {[#]} 48. Qc1 $1 {[%mdl 512]} Qxd7 49. Qxg5 Rb1+ 50. Kh2 g3+ 51. Qxg3) 46... Rxg7 {[%emt 0:00:06]} 47. Rxg7+ {[%emt 0:00:02]} Kf8 {[%emt 0:01:34]} 48. h6 {[%emt 0:02:12]} Ke8 {[%emt 0:00:45]} 49. h7 {[%emt 0:00:47] Weighted Error Value: White=0.21 (precise) /Black=0.57} 1-0

[Event "Icelandic Championship 2022"]
[Site "Selfoss"]
[Date "2022.04.25"]
[Round "5.1"]
[White "Stefansson, Vignir Vatnar"]
[Black "Thorfinnsson, Bragi"]
[Result "1-0"]
[ECO "E04"]
[WhiteElo "2484"]
[BlackElo "2419"]
[Annotator "TA"]
[PlyCount "61"]
[EventDate "2022.04.21"]
[EventType "tourn"]
[EventCountry "ISL"]
[SourceTitle "playchess.com"]
[Source "ChessBase"]
[SourceQuality "1"]
[TimeControl "40/5400+30:1800+30"]

{[%evp 12,61,23,26,23,25,12,20,72,58,56,55,133,124,156,165,161,157,209,190,222,232,214,195,247,247,246,247,252,246,298,297,288,288,345,361,362,355,368,339,580,572,635,637,833,827,965,943,928,854,807,683]} 1. Nf3 {[%emt 0:00:34]} Nf6 {[%emt 0:01:12]} 2. c4 {[%emt 0:00:35]} e6 {[%emt 0:00:15]} 3. g3 {[%emt 0:00:44]} d5 {[%emt 0:00:12]} 4. d4 {[%emt 0:00:14]} Bb4+ {[%emt 0:00:59]} 5. Nbd2 {[%emt 0:00:13]} dxc4 {[%emt 0:09:08]} 6. Bg2 {[%emt 0:00:17]} O-O {[%emt 0:00:51]} 7. Qc2 {[%emt 0:01:08]} b5 {[%emt 0:03:23] E04: Open Catalan: 5 Nf3.} 8. a4 {[%emt 0:00:35]} Bb7 {[%emt 0:10:50] ...a6 is the strong threat.} 9. axb5 {[%emt 0:01:17]} Bxd2+ {[%emt 0:02:35]} (9... a6 $11 {keeps the balance.}) 10. Bxd2 $16 {[%emt 0:02:02][%cal Bc1d2,Bd2b4,Bb4a3][%mdl 32]} Bd5 {[%emt 0:01:21]} 11. O-O {[%emt 0:16:26] [#]} Nbd7 $146 {[%emt 0:05:41]} (11... a6 $14) ({Predecessor:} 11... a6) 12. Rfe1 {[%emt 0:01:50] &Bianco is more active.} Ne4 {[%emt 0:12:06]} 13. Bb4 {[%emt 0:01:38]} Re8 {[%emt 0:00:53]} 14. Ne5 {[%emt 0:02:12]} f5 {[%emt 0:02:34]} (14... Ndf6 $16 {keeps fighting.} 15. e3 (15. Nxc4 Rb8 $16) 15... Rb8) 15. Nxc4 {[%emt 0:11:46]} Qf6 {[%emt 0:02:11]} 16. Qd3 {[%emt 0:02:18]} Reb8 {[%emt 0:02:20]} 17. f3 {[%emt 0:06:33]} c5 {[%emt 0:05:43]} (17... Bxc4 $142 18. Qxc4 Nd6) 18. Ba3 $18 {[%emt 0:10:52]} Bxc4 {[%emt 0:11:23]} 19. Qxc4 {[%emt 0:00:12]} Nd6 {[%emt 0:01:10]} (19... Nd2 $2 20. Qc2 $18) 20. Qd3 {[%emt 0:01:42]} c4 {[%emt 0:02:36]} 21. Qd1 {[%emt 0:02:09]} Nxb5 {[%emt 0:01:48]} 22. f4 {[%emt 0:00:16]} Nb6 {[%emt 0:01:12]} 23. Bxa8 {[%emt 0:00:08]} Rxa8 {[%emt 0:00:08]} 24. Bc5 {[%emt 0:01:55] [#] Strongly threatening Bxb6.} Nd7 {[%emt 0:04:50]} 25. Qd2 {[%emt 0:04:19]} Rd8 $2 {[%emt 0:04:59]} (25... h6 26. e3 a6) 26. Qb4 {[%emt 0:03:59] White is clearly winning.} Nxc5 {[%emt 0:05:28]} 27. dxc5 {[%emt 0:00:08][%cal Bd4c5,Bc5c6,Bc6c7][%mdl 32]} Nd4 {[%emt 0:01:53]} 28. Qxc4 {[%emt 0:00:27]} g5 {[%emt 0:00:08]} 29. c6 {[%emt 0:02:33]} gxf4 {[%emt 0:00:25]} 30. c7 {[%emt 0:00:06]} Rc8 {[%emt 0:00:16]} 31. Rad1 {[%emt 0:00:28] White took control after the opening.  Weighted Error Value: White=0.04 (flawless) /Black=0.39} 1-0

[Event "Icelandic Championship 2022"]
[Site "Selfoss"]
[Date "2022.04.25"]
[Round "5.2"]
[White "Steingrimsson, Hedinn"]
[Black "Stefansson, Hannes"]
[Result "1/2-1/2"]
[ECO "E35"]
[WhiteElo "2535"]
[BlackElo "2520"]
[Annotator "TA"]
[PlyCount "131"]
[EventDate "2022.04.21"]
[EventType "tourn"]
[EventCountry "ISL"]
[SourceTitle "playchess.com"]
[Source "ChessBase"]
[SourceQuality "1"]
[TimeControl "40/5400+30:1800+30"]

{[%evp 15,131,0,8,0,2,0,14,16,33,0,25,41,41,37,43,24,72,63,72,25,51,14,44,45,54,55,57,-43,-50,-60,-56,-60,0,-21,0,0,0,0,0,0,8,2,7,0,0,0,25,13,0,-13,0,-25,-4,-6,-9,-659,0,0,0,0,0,0,0,-745,-141,-279,0,0,0,0,0,0,0,0,0,-8,0,-266,-252,-775,-718,-350,-8,-8,0,0,0,0,0,0,0,0,0,0,0,0,0,0,0,0,0,0,0,0,0,0,0,0,0,0,0,-162,-163,-164,0,0,0,0]} 1. d4 {[%emt 0:00:17]} Nf6 {[%emt 0:00:11]} 2. c4 {[%emt 0:00:04]} e6 {[%emt 0:00:11]} 3. Nc3 {[%emt 0:00:04]} Bb4 {[%emt 0:00:12]} 4. Qc2 {[%emt 0:00:04]} d5 {[%emt 0:00:36]} 5. cxd5 {[%emt 0:00:28]} exd5 {[%emt 0:00:27]} 6. Bg5 {[%emt 0:00:09]} h6 {[%emt 0:00:37]} 7. Bh4 {[%emt 0:00:05]} Nc6 {[%emt 0:01:55]} 8. e3 {[%emt 0:01:00]} g5 {[%emt 0:00:32]} 9. Bg3 {[%emt 0:00:02]} h5 {[%emt 0:01:47]} 10. Bb5 {[%emt 0:00:19]} h4 {[%emt 0:01:30]} 11. Be5 {[%emt 0:00:28]} O-O {[%emt 0:00:59]} 12. h3 {[%emt 0:02:43]} Ne4 {[%emt 0:05:20]} 13. Bh2 {[%emt 0:03:12]} Bf5 {[%emt 0:03:49]} 14. Bd3 $1 {[%emt 0:05:13]} Re8 {[%emt 0:02:23]} 15. Nge2 {[%emt 0:07:13]} (15. Nf3 {seems wilder.} Qf6 16. O-O Bxc3 17. bxc3 Bxh3 18. Be5) 15... Bd6 {[%emt 0:02:30]} (15... Bxc3+ $11 16. bxc3 Qd7) 16. Bxd6 $16 {[%emt 0:02:31]} Qxd6 {[%emt 0:00:15]} 17. a3 {[%emt 0:00:19]} (17. Bxe4 $16 Bxe4 18. Nxe4 Rxe4 19. Rc1) 17... Rad8 {[%emt 0:11:07]} 18. Nb5 {[%emt 0:29:55]} Qe7 {[%emt 0:02:05]} 19. O-O {[%emt 0:04:20]} a6 {[%emt 0:02:27]} 20. Nbc3 {[%emt 0:00:03]} Qf6 {[%emt 0:14:40]} 21. f3 {[%emt 0:23:09]} (21. Rac1 $14) 21... Nxc3 $15 {[%emt 0:02:03]} 22. bxc3 {[%emt 0:00:13]} Bxd3 {[%emt 0:02:23]} 23. Qxd3 {[%emt 0:00:02]} Na5 {[%emt 0:04:37]} (23... Qe6 $15 24. e4 dxe4) 24. Rfe1 {[%emt 0:07:13]} Re6 {[%emt 0:09:57]} 25. Nc1 {[%emt 0:02:35]} c5 {[%emt 0:06:14]} 26. Ra2 {[%emt 0:00:44]} cxd4 {[%emt 0:02:36]} 27. cxd4 {[%emt 0:00:09]} b5 {[%emt 0:01:25]} 28. Nb3 {[%emt 0:01:27]} Nc4 {[%emt 0:00:18]} 29. Rae2 {[%emt 0:01:08]} Re7 {[%emt 0:01:07]} 30. Nc5 {[%emt 0:01:50]} Rde8 {[%emt 0:01:28]} 31. Kh1 {[%emt 0:02:28]} Kg7 {[%emt 0:01:11]} 32. Qb3 {[%emt 0:00:50]} Qd6 {[%emt 0:05:45]} 33. a4 {[%emt 0:01:55]} bxa4 {[%emt 0:01:43]} 34. Nxa4 {[%emt 0:00:02]} Qg3 {[%emt 0:04:12]} 35. Qd3 $2 {[%emt 0:01:37][%mdl 8192] [#]} (35. Nc5 $11) 35... g4 $2 {[%emt 0:01:24]} (35... Nxe3 $1 $19 {[%mdl 512]} 36. Rxe3 g4 37. hxg4 (37. Rxe7 Qxe1+ 38. Rxe1 Rxe1+) 37... h3 38. gxh3 Rxe3 39. Rxe3 Rh8) 36. fxg4 $11 {[%emt 0:01:20]} (36. hxg4 $2 h3 37. Kg1 hxg2 $19) 36... Nxe3 {[%emt 0:05:55]} 37. Kg1 $1 {[%emt 0:02:05]} Qf4 {[%emt 0:01:08]} 38. Nc5 {[%emt 0:00:36]} a5 {[%emt 0:00:25]} 39. Nb3 $2 {[%emt 0:01:05][%mdl 8192] [#]} (39. Qd2 $11) 39... a4 $2 {[%emt 0:00:36]} (39... Nxg2 $1 $19 {[%mdl 512] and Black stays clearly on top.} 40. Kxg2 Rxe2+ 41. Rxe2 Rxe2+ 42. Qxe2 Qg3+ 43. Kf1 Qxh3+ 44. Kg1 Qxb3 45. Qe5+ f6) 40. Nd2 {[%emt 0:00:01] [#]} (40. Nc1 $17) 40... a3 $2 {[%emt 0:01:26]} ({Better is} 40... Nc2 $1 $19 {[%cal Rc2e1][%mdl 512]} 41. Rf1 (41. Rxe7 Nxe1 42. Qe2 Qxd4+ 43. Qe3 Qxe3+ $19) 41... Qxd4+ 42. Qxd4+ Nxd4 43. Rxe7 Rxe7) 41. Nf1 $1 $11 {[%emt 0:20:15]} Nxg2 {[%emt 0:07:34]} 42. Kxg2 {[%emt 0:00:50]} Rxe2+ {[%emt 0:00:11]} 43. Rxe2 {[%emt 0:00:01]} Rxe2+ {[%emt 0:00:09]} 44. Qxe2 {[%emt 0:00:02]} Qxd4 {[%emt 0:00:18]} 45. Ne3 {[%emt 0:06:28]} Qb2 {[%emt 0:01:56]} 46. Nc2 $2 {[%emt 0:01:37][%mdl 8192]} (46. Kf3 $11 Kh8 47. Qa6 (47. Nxd5 $2 Qxe2+ 48. Kxe2 a2 $19)) 46... a2 $19 {[%emt 0:00:35]} 47. Kf2 $2 {[%emt 0:00:20]} (47. Qd1) 47... Qc3 $19 {[%emt 0:00:56]} 48. Qd1 {[%emt 0:00:32]} d4 $2 {[%emt 0:01:38]} (48... Qxh3 $2 49. Qa1+ Kg6 50. Qxa2 $17) (48... Kg6 $19 {Hoping for ...Qg3+.} 49. Ke2 Qxh3) 49. Ke2 $11 {[%emt 0:00:44]} Kg8 {[%emt 0:03:20]} ({Much weaker is} 49... Qxh3 $6 50. Qxd4+ Kg8 51. Qd8+ Kh7 52. Qg5 $17) 50. Qd3 {[%emt 0:00:28]} Qc5 {[%emt 0:01:44]} 51. Qe4 {[%emt 0:00:36]} Kg7 {[%emt 0:00:38]} 52. Kd1 {[%emt 0:00:28]} Qc4 {[%emt 0:02:29]} 53. Qe5+ {[%emt 0:00:27]} f6 {[%emt 0:00:53]} 54. Qe7+ {[%emt 0:00:02]} Kg6 {[%emt 0:00:15]} 55. Qe4+ {[%emt 0:00:36]} Kh6 {[%emt 0:00:18]} 56. Qf5 {[%emt 0:00:33]} Qc6 {[%emt 0:00:39]} 57. Qf4+ {[%emt 0:00:13]} Kg6 {[%emt 0:00:19]} 58. Qxd4 {[%emt 0:00:13]} Qh1+ {[%emt 0:00:22]} 59. Kd2 {[%emt 0:00:03]} Qxh3 {[%emt 0:00:37]} 60. Qe4+ {[%emt 0:00:20]} Kh6 {[%emt 0:00:48]} 61. Qf4+ {[%emt 0:04:27]} Kg7 {[%emt 0:00:13]} 62. Qc7+ {[%emt 0:00:11]} Kg6 {[%emt 0:00:05]} 63. Qa5 $2 {[%emt 0:00:03] [#]} (63. Qc4 $11 {and White is okay.}) 63... Qh2+ $1 $19 {[%emt 0:01:05]} ({Weaker is} 63... Qxg4 64. Qxa2 Qf4+ 65. Kd1 $11) 64. Kd3 {[%emt 0:01:16] [#]} Qd6+ $2 {[%emt 0:00:36]} (64... Qg3+ $1 $19 65. Kc4 (65. Ne3 $2 Qd6+ 66. Kc4 Qe5 $19) 65... Qxg4+ 66. Nd4 Qg2 67. Qf5+ Kg7 68. Ne6+ Kf7) 65. Nd4 $11 {[%emt 0:00:44]} Qg3+ {[%emt 0:01:57]} 66. Kc4 {[%emt 0:00:02]} 1/2-1/2